fUSD/lending_fUSD_20260201
["ID","MTS","AMOUNT","RATE_DAILY","PERIOD"]
[404209016,1769966462025,-150.0,0.00043642,30]
[404209017,1769966462092,-179.6970665,0.00043642,30]
[404209018,1769966462159,-162.3793229,0.00043642,30]
[404209019,1769966462226,-150.0,0.00043642,30]
[404209020,1769966462295,-150.0,0.00043642,30]
[404209021,1769966462363,-150.0,0.00043642,30]
[404209022,1769966462431,-150.0,0.00043642,30]
[404209023,1769966462498,-159.53337511,0.00043642,30]
[404209024,1769966462565,-195.47157131,0.00043642,30]
[404209025,1769966462634,-150.0,0.00043642,30]
[404209026,1769966462702,-150.0,0.00043642,30]
[404209027,1769966462767,-150.0,0.00043642,30]
[404209028,1769966462832,-500.0,0.00043671,120]
[404209029,1769966462899,-150.0,0.00043682,120]
[404209030,1769966462964,-642.78,0.00043698,30]
[404209031,1769966463215,-642.78,0.00043698,30]
[404209032,1769966463285,-150.0,0.00043727,120]
[404209033,1769966463352,-501.9731383,0.000438,30]
[404209034,1769966463418,-152.0,0.000438,120]
[404209035,1769966463485,-211.3281782,0.000438,120]
[404209036,1769966463554,-500.0,0.00043808,120]
[404209037,1769966463623,-500.0,0.00043835,60]
[404209038,1769966463692,-800.0,0.00043836,32]
[404209039,1769966463759,-800.0,0.00043836,32]
[404209040,1769966463830,-150.0,0.00043849,120]
[404209041,1769966463896,-150.0,0.00043855,30]
[404209042,1769966463965,-500.0,0.00043945,120]
[404209043,1769966464034,-642.78,0.00043972,30]
[404209044,1769966464102,-642.78,0.00043972,30]
[404209045,1769966464169,-2596.67752904,0.00043987,120]
[404209046,1769966464237,-160.0,0.00044,120]
[404209047,1769966464304,-433.06811739,0.00044,120]
[404209048,1769966464372,-153.0,0.00044,120]
[404209049,1769966464442,-1132.56848601,0.00044,120]
[404209050,1769966464511,-3100.0,0.00044,120]
[404209051,1769966464579,-558.240183,0.00044,57]
[404209052,1769966464646,-150.0,0.00044034,30]
[404209053,1769966464713,-150.0,0.00044067,30]
[404209054,1769966464780,-5770.0,0.0004407,30]
[404209055,1769966464847,-500.0,0.00044082,120]
[404209056,1769966464912,-151.0,0.00044084,60]
[404209057,1769966464982,-200.0,0.00044092,120]
[404209058,1769966465059,-800.0,0.00044109,60]
[404209059,1769966465124,-500.0,0.00044109,60]
[404209060,1769966465194,-1000.0,0.00044109,120]
[404209061,1769966465261,-172.49,0.0004411,30]
[404209062,1769966465327,-150.0,0.00044174,30]
[404209063,1769966465393,-150.0,0.00044174,30]
[404209064,1769966465458,-150.0,0.00044214,30]
[404209065,1769966465524,-500.0,0.00044219,120]
[404209066,1769966465590,-642.78,0.00044246,30]
[404209067,1769966465658,-642.78,0.00044246,30]
[404209068,1769966465725,-159.08249396,0.0004425,120]
[404209069,1769966465794,-150.0,0.0004428,30]
[404209070,1769966465860,-150.0,0.00044319,30]
[404209071,1769966465926,-500.0,0.00044356,120]
[404209072,1769966465998,-500.0,0.00044383,60]
[404209073,1769966466064,-150.0,0.00044386,30]
[404209074,1769966466128,-217.2624496,0.00044394,120]
[404209075,1769966466195,-150.0,0.00044425,30]
[404209076,1769966466260,-150.0,0.00044493,30]
[404209077,1769966466324,-500.0,0.00044493,120]
[404209078,1769966466387,-152.0,0.000445,120]
[404209079,1769966466451,-1478.72065632,0.000445,120]
[404209080,1769966466516,-5770.0,0.00044507,30]
[404209081,1769966466580,-642.78,0.0004452,30]
[404209082,1769966466648,-642.78,0.0004452,30]
[404209083,1769966466713,-173.47576183,0.000446,120]
[404209084,1769966466777,-160.15741891,0.000446,120]
[404209085,1769966466841,-233.13982997,0.000446,120]
[404209086,1769966466910,-186.43042813,0.000446,120]
[404209087,1769966466981,-176.9126022,0.000446,120]
[404209088,1769966467055,-193.91078058,0.000446,120]
[404209089,1769966467125,-201.25033978,0.000446,120]
[404209090,1769966467195,-209.39631983,0.000446,120]
[404209091,1769966467263,-212.12379108,0.000446,120]
[404209092,1769966467327,-203.94592894,0.000446,120]
[404209093,1769966467393,-180.14798585,0.000446,120]
[404209094,1769966467458,-153.0,0.000446,120]
[404209095,1769966467523,-201.19772747,0.000446,120]
[404209096,1769966467588,-500.0,0.0004463,120]
[404209097,1769966467655,-150.0,0.00044637,120]
[404209098,1769966467721,-800.0,0.00044657,60]
[404209099,1769966467786,-6202.66,0.000447,30]
[404209100,1769966467852,-150.0,0.00044705,30]
[404209101,1769966467920,-150.0,0.00044705,30]
[404209102,1769966467990,-150.0,0.00044705,30]
[404209103,1769966468056,-457.30683933,0.00044712,30]
[404209104,1769966468125,-500.0,0.00044767,120]
[404209105,1769966468194,-150.0,0.00044787,30]
[404209106,1769966468263,-642.78,0.00044794,30]
[404209107,1769966468334,-642.78,0.00044794,30]
[404209108,1769966468401,-150.0,0.00044817,30]
[404209109,1769966468468,-450.51287823,0.0004489,120]
[404209110,1769966468537,-1033.8060528,0.000449,30]
[404209111,1769966468605,-616.09986734,0.00044904,120]
[404209112,1769966468674,-457.30683933,0.00044904,30]
[404209113,1769966468741,-150.0,0.00044918,30]
[404209114,1769966468813,-1119.42,0.00044931,30]
[404209115,1769966468883,-1000.0,0.00044931,120]
[404209116,1769966468954,-559.71,0.0004494,30]
[404209117,1769966469021,-559.71,0.0004494,30]
[404209118,1769966469087,-559.71,0.0004494,30]
[404209119,1769966469155,-559.71,0.0004494,30]
[404209120,1769966469224,-5770.0,0.00044943,30]
[404209121,1769966469294,-210.0,0.0004496,30]
[404209122,1769966469367,-150.0,0.00044995,30]
[404209123,1769966469437,-164.61352229,0.00045,60]
[404209124,1769966469507,-550.66272255,0.00045,120]
[404209125,1769966469579,-249.44537459,0.00045,120]
[404209126,1769966469849,-615.74869017,0.00045,120]
[404209127,1769966469919,-255.71043415,0.00045,120]
[404209128,1769966469988,-150.0,0.00045,120]
[404209129,1769966470055,-230.00971857,0.00045,120]
[404209130,1769966470123,-290.81972834,0.00045,30]
[404209131,1769966470194,-159.9,0.00045,85]
[404209132,1769966470256,-1611.77542742,0.00045,120]
[404209133,1769966470318,-1914.81120135,0.00045,120]
[404209134,1769966470392,-472.86,0.00045,120]
[404209135,1769966470459,-1701.03,0.00045,120]
[404209136,1769966470526,-251.38,0.00045,120]
[404209137,1769966470591,-340.2,0.00045,120]
[404209138,1769966470657,-1000.0,0.00045,120]
[404209139,1769966470723,-642.78,0.00045068,30]
[404209140,1769966470787,-642.78,0.00045068,30]
[404209141,1769966470853,-457.30683933,0.00045068,30]
[404209142,1769966470920,-151.0,0.00045084,60]
[404209143,1769966470985,-150.0,0.0004513,30]
[404209144,1769966471050,-150.0,0.0004513,30]
[404209145,1769966471115,-200.0,0.00045153,120]
[404209146,1769966471179,-800.0,0.00045205,60]
[404209147,1769966471244,-500.0,0.00045205,60]
[404209148,1769966471309,-150.0,0.00045209,30]
[404209149,1769966471374,-150.0,0.00045237,30]
[404209150,1769966471443,-150.0,0.00045237,30]
[404209151,1769966471523,-457.30683933,0.0004526,30]
[404209152,1769966471589,-152.0,0.000453,120]
[404209153,1769966471657,-153.0,0.000453,120]
[404209154,1769966471722,-642.78,0.00045342,30]
[404209155,1769966471787,-642.78,0.00045342,30]
[404209156,1769966471853,-150.0,0.00045343,30]
[404209157,1769966471919,-150.0,0.00045359,30]
[404209158,1769966471986,-220.0,0.0004539,30]
[404209159,1769966472050,-457.30683933,0.00045452,30]
[404209160,1769966472115,-500.0,0.00045479,60]
[404209161,1769966472182,-150.0,0.00045556,30]
[404209162,1769966472248,-150.0,0.000456,30]
[404209163,1769966472312,-457.30683933,0.00045616,30]
[404209164,1769966472377,-203.21,0.00045616,120]
[404209165,1769966472449,-150.0,0.00045672,30]
[404209166,1769966472514,-274.64175374,0.000457,120]
[404209167,1769966472581,-1000.0,0.00045753,120]
[404209168,1769966472649,-559.71,0.00045756,30]
[404209169,1769966472716,-559.71,0.00045756,30]
[404209170,1769966472782,-559.71,0.00045757,30]
[404209171,1769966472846,-559.71,0.00045757,30]
[404209172,1769966472911,-558.95,0.00045757,30]
[404209173,1769966472978,-559.71,0.00045762,30]
[404209174,1769966473044,-150.0,0.00045768,30]
[404209175,1769966473108,-150.0,0.00045768,30]
[404209176,1769966473172,-150.0,0.00045768,30]
[404209177,1769966473235,-172.49,0.00045771,30]
[404209178,1769966473299,-172.49,0.00045771,30]
[404209179,1769966473363,-172.1,0.00045771,30]
[404209180,1769966473430,-173.39,0.000458,90]
[404209181,1769966473494,-606.87,0.000458,90]
[404209182,1769966473558,-605.71,0.000458,120]
[404209183,1769966473623,-605.71,0.000458,120]
[404209184,1769966473687,-742.7099,0.000458,120]
[404209185,1769966473749,-175.46,0.000458,60]
[404209186,1769966473814,-457.30683933,0.00045808,30]
[404209187,1769966473878,-150.0,0.00045875,30]
[404209188,1769966473946,-6202.66,0.000459,30]
[404209189,1769966474011,-153.0,0.000459,120]
[404209190,1769966474076,-150.0,0.00045932,30]
[404209191,1769966474145,-457.30683933,0.00045973,30]
[404209192,1769966474210,-150.0,0.00045981,30]
[404209193,1769966474276,-150.0,0.00045992,30]
[404209194,1769966474339,-173.47576183,0.00046,120]
[404209195,1769966474403,-233.13982997,0.00046,120]
[404209196,1769966474467,-176.9126022,0.00046,120]
[404209197,1769966474533,-193.91078058,0.00046,120]
[404209198,1769966474596,-201.25033978,0.00046,120]
[404209199,1769966474660,-317.5170254,0.00046,120]
[404209200,1769966474724,-205.1123137,0.00046,30]
[404209201,1769966474794,-172.60211954,0.00046,120]
[404209202,1769966474862,-150.0,0.00046,120]
[404209203,1769966474927,-812.0,0.00046,120]
[404209204,1769966474993,-212.12379108,0.00046,120]
[404209205,1769966475061,-152.0,0.00046,120]
[404209206,1769966475130,-1392.82564419,0.00046,120]
[404209207,1769966475197,-1273.70238497,0.00046,30]
[404209208,1769966475262,-1331.70778603,0.00046,90]
[404209209,1769966475327,-1159.93000521,0.00046,120]
[404209210,1769966475399,-151.0,0.00046084,60]
[404209211,1769966475463,-150.0,0.00046123,30]
[404209212,1769966475529,-150.0,0.00046123,30]
[404209213,1769966475592,-457.30683933,0.00046164,30]
[404209214,1769966475655,-150.0,0.00046194,30]
[404209215,1769966475720,-200.0,0.00046213,120]
[404209216,1769966475784,-150.0,0.000463,30]
[404209217,1769966475847,-150.0,0.000463,30]
[404209218,1769966475914,-800.0,0.00046301,60]
[404209219,1769966475979,-500.0,0.00046301,60]
[404209220,1769966476233,-457.30683933,0.00046329,30]
[404209221,1769966476296,-150.0,0.00046348,30]
[404209222,1769966476360,-150.0,0.00046384,30]
[404209223,1769966476421,-150.0,0.00046406,30]
[404209224,1769966476486,-169.29514494,0.0004649,120]
[404209225,1769966476552,-150.0,0.00046504,30]
[404209226,1769966476619,-457.30683933,0.00046521,30]
[404209227,1769966476684,-500.0,0.00046575,60]
[404209228,1769966476750,-1000.0,0.00046575,120]
[404209229,1769966476813,-172.49,0.00046578,30]
[404209230,1769966476880,-217.2624496,0.00046586,120]
[404209231,1769966476952,-153.0,0.000466,120]
[404209232,1769966477020,-150.0,0.00046619,30]
[404209233,1769966477088,-150.0,0.00046619,30]
[404209234,1769966477155,-457.30683933,0.00046712,30]
[404209235,1769966477219,-429.26,0.00046737,120]
[404209236,1769966477288,-150.0,0.00046775,30]
[404209237,1769966477354,-152.0,0.000468,120]
[404209238,1769966477417,-850.97605363,0.000468,120]
[404209239,1769966477491,-609.55,0.000468,120]
[404209240,1769966477560,-150.0,0.00046831,30]
[404209241,1769966477637,-150.0,0.00046831,30]
[404209242,1769966477706,-150.0,0.00046831,30]
[404209243,1769966477772,-168.52682858,0.00046887,30]
[404209244,1769966477837,-1316.38088483,0.000469,120]
[404209245,1769966477903,-1000.0,0.000469,120]
[404209246,1769966477972,-210.0,0.0004698,30]
[404209247,1769966478044,-150.0,0.00046995,120]
[404209248,1769966478112,-150.0,0.00047,120]
[404209249,1769966478178,-2050.71695173,0.00047,60]
[404209250,1769966478241,-676.67227434,0.00047,30]
[404209251,1769966478305,-2775.634,0.00047,120]
[404209252,1769966478368,-2775.634,0.00047,120]
[404209253,1769966478433,-2775.63,0.00047,120]
[404209254,1769966478496,-150.0,0.00047025,30]
[404209255,1769966478560,-150.0,0.00047044,30]
[404209256,1769966478635,-150.0,0.00047077,30]
[404209257,1769966478702,-151.0,0.00047084,60]
[404209258,1769966478768,-150.0,0.00047167,30]
[404209259,1769966478837,-609.55,0.00047208,120]
[404209260,1769966478910,-499.99285099,0.00047248,60]
[404209261,1769966478993,-150.0,0.00047257,30]
[404209262,1769966479072,-200.0,0.00047274,120]
[404209263,1769966479144,-173.47576183,0.000473,120]
[404209264,1769966479213,-193.91078058,0.000473,120]
[404209265,1769966479280,-153.0,0.000473,120]
[404209266,1769966479346,-150.0,0.00047363,30]
[404209267,1769966479410,-150.0,0.00047363,30]
[404209268,1769966479474,-150.0,0.00047363,30]
[404209269,1769966479538,-800.0,0.00047397,60]
[404209270,1769966479603,-1000.0,0.00047397,120]
[404209271,1769966479670,-500.0,0.00047397,60]
[404209272,1769966479735,-212.12379108,0.000474,120]
[404209273,1769966479801,-353.36005996,0.000474,120]
[404209274,1769966479868,-150.0,0.00047469,30]
[404209275,1769966479932,-576.31546692,0.000475,120]
[404209276,1769966480001,-150.0,0.00047559,30]
[404209277,1769966480066,-152.0,0.000476,120]
[404209278,1769966480130,-609.55,0.00047616,120]
[404209279,1769966480198,-150.0,0.00047649,30]
[404209280,1769966480263,-500.0,0.00047671,60]
[404209281,1769966480329,-150.0,0.00047682,30]
[404209282,1769966480394,-150.0,0.00047701,30]
[404209283,1769966480458,-816.01310016,0.000478,120]
[404209284,1769966480524,-171.0,0.0004788,90]
[404209285,1769966480592,-150.0,0.00047895,30]
[404209286,1769966480657,-150.0,0.00047895,30]
[404209287,1769966480721,-150.0,0.00047895,30]
[404209288,1769966480786,-153.0,0.000479,120]
[404209289,1769966480849,-150.0,0.00047951,30]
[404209290,1769966480913,-233.54599915,0.00048,120]
[404209291,1769966480981,-150.0,0.00048,120]
[404209292,1769966481050,-500.0,0.00048,120]
[404209293,1769966481118,-243.783,0.00048,99]
[404209294,1769966481187,-1039130.39010134,0.00048,30]
[404209295,1769966481251,-643.0,0.00048,120]
[404209296,1769966481316,-560.44,0.00048,120]
[404209297,1769966481380,-1352.38693636,0.00048,120]
[404209298,1769966481447,-1159.93000521,0.00048,120]
[404209299,1769966481513,-609.55,0.00048024,120]
[404209300,1769966481578,-150.0,0.00048051,120]
[404209301,1769966481644,-151.0,0.00048084,60]
[404209302,1769966481713,-150.0,0.00048107,30]
[404209303,1769966481777,-150.0,0.00048107,30]
[404209304,1769966481843,-1080.34001638,0.00048219,120]
[404209305,1769966481910,-150.0,0.00048222,30]
[404209306,1769966481977,-152.0,0.000483,120]
[404209307,1769966482048,-15767.35637107,0.00048316,30]
[404209308,1769966482115,-150.0,0.0004832,30]
[404209309,1769966482181,-200.0,0.00048335,120]
[404209310,1769966482248,-150.0,0.00048342,30]
[404209311,1769966482314,-150.0,0.00048378,30]
[404209312,1769966482380,-150.0,0.00048426,30]
[404209313,1769966482447,-150.0,0.00048426,30]
[404209314,1769966482512,-609.55,0.00048432,120]
[404209315,1769966482719,-800.0,0.00048493,60]
[404209316,1769966482785,-500.0,0.00048493,60]
[404209317,1769966482851,-150.0,0.00048532,120]
[404209318,1769966482918,-150.0,0.00048532,30]
[404209319,1769966482988,-153.0,0.000486,120]
[404209320,1769966483056,-150.0,0.00048603,30]
[404209321,1769966483125,-150.0,0.00048603,30]
[404209322,1769966483197,-503.0,0.00048676,30]
[404209323,1769966483266,-150.0,0.00048734,30]
[404209324,1769966483332,-150.0,0.00048745,30]
[404209325,1769966483400,-500.0,0.00048767,60]
[404209326,1769966483465,-500.0,0.00048767,120]
[404209327,1769966483531,-500.0,0.00048767,120]
[404209328,1769966483599,-500.0,0.00048767,120]
[404209329,1769966483665,-500.0,0.00048767,120]
[404209330,1769966483733,-500.0,0.00048767,120]
[404209331,1769966483801,-500.0,0.00048767,120]
[404209332,1769966483869,-500.0,0.00048767,120]
[404209333,1769966483943,-500.0,0.00048767,120]
[404209334,1769966484013,-500.0,0.00048767,120]
[404209335,1769966484089,-271.09978646,0.00048767,120]
[404209336,1769966484159,-217.2624496,0.00048778,120]
[404209337,1769966484231,-150.0,0.00048794,30]
[404209338,1769966484302,-193.91078058,0.000488,120]
[404209339,1769966484368,-212.12379108,0.000488,120]
[404209340,1769966484435,-609.55,0.0004884,120]
[404209341,1769966484503,-150.0,0.00048851,30]
[404209342,1769966484570,-1898.79124639,0.00048875,60]
[404209343,1769966484638,-406.48740849,0.0004888,120]
[404209344,1769966484711,-4113.02710557,0.00048889,120]
[404209345,1769966484779,-153.77302076,0.000489,120]
[404209346,1769966484847,-166.85198922,0.000489,120]
[404209347,1769966484917,-2931.17911495,0.000489,120]
[404209348,1769966484988,-150.0,0.00048958,30]
[404209349,1769966485056,-150.0,0.00048958,30]
[404209350,1769966485129,-150.0,0.00048958,30]
[404209351,1769966485196,-456.73402014,0.00048986,120]
[404209352,1769966485265,-210.0,0.0004899,30]
[404209353,1769966485334,-279.99538207,0.00049,120]
[404209354,1769966485398,-208.86779338,0.00049,120]
[404209355,1769966485464,-278.16605021,0.00049,120]
[404209356,1769966485530,-267.51173966,0.00049,120]
[404209357,1769966485596,-262.97253633,0.00049,90]
[404209358,1769966485660,-213.85237498,0.00049,120]
[404209359,1769966485725,-150.0,0.00049,120]
[404209360,1769966485789,-1000.0,0.00049,120]
[404209361,1769966485854,-161.05419706,0.00049,30]
[404209362,1769966485919,-258.0,0.00049,120]
[404209363,1769966485983,-2684.06457105,0.00049,120]
[404209364,1769966486049,-1882.97420529,0.00049,120]
[404209365,1769966486118,-500.0,0.00049,120]
[404209366,1769966486184,-150.0,0.00049054,30]
[404209367,1769966486251,-151.0,0.00049084,60]
[404209368,1769966486325,-152.0,0.000491,120]
[404209369,1769966486391,-150.0,0.00049126,30]
[404209370,1769966486455,-150.0,0.0004917,30]
[404209371,1769966486523,-153.0,0.000492,120]
[404209372,1769966486588,-3277.4,0.00049217,120]
[404209373,1769966486654,-609.55,0.00049248,120]
[404209374,1769966486722,-150.0,0.00049295,120]
[404209375,1769966486790,-443.67494225,0.000493,120]
[404209376,1769966486856,-2000.0,0.00049315,120]
[404209377,1769966486922,-500.0,0.00049315,120]
[404209378,1769966486986,-500.0,0.00049315,120]
[404209379,1769966487055,-500.0,0.00049315,120]
[404209380,1769966487122,-500.0,0.00049315,120]
[404209381,1769966487190,-500.0,0.00049315,120]
[404209382,1769966487253,-497.599,0.00049315,120]
[404209383,1769966487321,-800.0,0.00049315,34]
[404209384,1769966487389,-800.0,0.00049315,34]
[404209385,1769966487456,-150.0,0.00049319,120]
[404209386,1769966487524,-269.58504707,0.00049351,120]
[404209387,1769966487590,-150.0,0.00049367,30]
[404209388,1769966487659,-150.0,0.00049383,30]
[404209389,1769966487724,-203.442396,0.00049395,120]
[404209390,1769966487793,-379.47,0.000494,30]
[404209391,1769966487861,-150.0,0.00049489,30]
[404209392,1769966487934,-150.0,0.00049489,30]
[404209393,1769966488007,-379.47,0.000495,30]
[404209394,1769966488077,-1445.42113797,0.000495,120]
[404209395,1769966488150,-500.0,0.000495,120]
[404209396,1769966488222,-503.0,0.000495,31]
[404209397,1769966488290,-180.0,0.00049516,90]
[404209398,1769966488358,-150.0,0.00049517,30]
[404209399,1769966488427,-70046.13845567,0.0004957,120]
[404209400,1769966488494,-800.0,0.00049589,60]
[404209401,1769966488559,-500.0,0.00049589,60]
[404209402,1769966488626,-150.0,0.00049596,30]
[404209403,1769966488693,-150.0,0.00049596,30]
[404209404,1769966488758,-150.0,0.00049618,120]
[404209405,1769966488822,-609.55,0.00049656,120]
[404209406,1769966488889,-2785.69,0.00049699,120]
[404209407,1769966488958,-97903.60210997,0.000497,120]
[404209408,1769966489026,-150.0,0.00049731,30]
[404209409,1769966489248,-993.12244462,0.00049799,120]
[404209410,1769966489316,-152.0,0.000498,120]
[404209411,1769966489382,-2899.43779162,0.000498,120]
[404209412,1769966489448,-728.59693949,0.000498,120]
[404209413,1769966489511,-150.0,0.00049808,30]
[404209414,1769966489580,-240.23806118,0.00049817,120]
[404209415,1769966489647,-500.0,0.00049863,60]
[404209416,1769966489714,-284.49241835,0.000499,30]
[404209417,1769966489781,-203.39795567,0.000499,120]
[404209418,1769966489846,-153.0,0.000499,120]
[404209419,1769966489913,-1141.28806884,0.000499,30]
[404209420,1769966489980,-150.0,0.00049909,30]
[404209421,1769966490051,-150.0,0.00049939,30]
[404209422,1769966490119,-1016.6765,0.0004999,120]
[404209423,1769966490188,-1051.48702249,0.0004999,120]
[404209424,1769966490253,-1289.58859734,0.0004999,120]
[404209425,1769966490317,-250.0,0.00049999,30]
[404209426,1769966490382,-250.0,0.00049999,32]
[404209427,1769966490446,-250.0,0.00049999,40]
[404209428,1769966490510,-250.0,0.00049999,60]
[404209429,1769966490573,-204.24338911,0.00049999,67]
[404209430,1769966490636,-239.84119403,0.00049999,30]
[404209431,1769966490702,-248.71531821,0.00049999,32]
[404209432,1769966490767,-257.91778498,0.00049999,40]
[404209433,1769966490832,-267.46074303,0.00049999,60]
[404209434,1769966490899,-151.0,0.00049999,30]
[404209435,1769966490969,-151.0,0.00049999,32]
[404209436,1769966491038,-151.0,0.00049999,40]
[404209437,1769966491106,-151.0,0.00049999,60]
[404209438,1769966491172,-151.0,0.00049999,67]
[404209439,1769966491239,-421.88884313,0.0005,120]
[404209440,1769966491301,-173.01706782,0.0005,120]
[404209441,1769966491365,-158.1166851,0.0005,120]
[404209442,1769966491430,-198.354087,0.0005,120]
[404209443,1769966491492,-207.6443563,0.0005,120]
[404209444,1769966491559,-15827.42,0.0005,120]
[404209445,1769966491621,-200.0,0.0005,120]
[404209446,1769966491685,-225.89174645,0.0005,120]
[404209447,1769966491748,-500.0,0.0005,30]
[404209448,1769966491814,-612.23399354,0.0005,120]
[404209449,1769966491877,-216.15429325,0.0005,120]
[404209450,1769966491944,-200.0,0.0005,120]
[404209451,1769966492007,-358.59894317,0.0005,120]
[404209452,1769966492071,-160.6182453,0.0005,120]
[404209453,1769966492138,-150.0,0.0005,120]
[404209454,1769966492204,-200.0,0.0005,120]
[404209455,1769966492272,-156.68834826,0.0005,120]
[404209456,1769966492337,-5019.56871237,0.0005,120]
[404209457,1769966492409,-364.32,0.0005,120]
[404209458,1769966492477,-603.470115,0.0005,120]
[404209459,1769966492544,-2096.15799451,0.0005,120]
[404209460,1769966492611,-150.0,0.0005,40]
[404209461,1769966492676,-1289.7929329,0.0005,120]
[404209462,1769966492742,-583.61,0.0005,120]
[404209463,1769966492808,-450.0,0.0005,60]
[404209464,1769966492873,-163.81186421,0.0005,120]
[404209465,1769966492938,-1502.72219492,0.0005,120]
[404209466,1769966493009,-1287.07637385,0.0005,30]
[404209467,1769966493073,-425.53837022,0.0005,120]
[404209468,1769966493140,-1231.58018481,0.0005,120]
[404209469,1769966493205,-972.00596119,0.0005,30]
[404209470,1769966493269,-2046.17648895,0.0005,120]
[404209471,1769966493334,-1021.7248088,0.0005,30]
[404209472,1769966493399,-600.0,0.0005,120]
[404209473,1769966493468,-580.56738909,0.0005,120]
[404209474,1769966493535,-472.86,0.0005,120]
[404209475,1769966493598,-1701.03,0.0005,120]
[404209476,1769966493663,-251.38,0.0005,120]
[404209477,1769966493728,-340.2,0.0005,120]
[404209478,1769966493792,-500.0,0.0005,120]
[404209479,1769966493859,-150.0,0.00050021,30]
[404209480,1769966493926,-150.0,0.00050021,30]
[404209481,1769966493996,-150.0,0.00050021,30]
[404209482,1769966494063,-150.0,0.00050027,120]
[404209483,1769966494126,-822.22679213,0.00050036,120]
[404209484,1769966494189,-609.55,0.00050064,120]
[404209485,1769966494253,-151.0,0.00050084,60]
[404209486,1769966494319,-1200.0,0.000501,120]
[404209487,1769966494385,-212.12379108,0.000502,120]
[404209488,1769966494447,-682.43483198,0.000502,30]
[404209489,1769966494509,-150.0,0.00050233,30]
[404209490,1769966494573,-150.0,0.00050301,30]
[404209491,1769966494645,-150.0,0.00050302,120]
[404209492,1769966494712,-503.0,0.00050324,31]
[404209493,1769966494776,-150.0,0.0005034,30]
[404209494,1769966494843,-150.0,0.00050407,30]
[404209495,1769966494911,-614.13,0.00050415,30]
[404209496,1769966494975,-150.0,0.00050446,30]
[404209497,1769966495042,-150.0,0.00050463,120]
[404209498,1769966495111,-609.55,0.00050472,120]
[404209499,1769966495179,-250.0,0.00050499,69]
[404209500,1769966495246,-151.0,0.00050499,69]
[404209501,1769966495310,-72487.56028129,0.000505,60]
[404209502,1769966495376,-394.28108034,0.000505,60]
[404209503,1769966495443,-698.58201839,0.000505,120]
[404209504,1769966495657,-99456.0,0.000505,33]
[404209505,1769966495722,-822.87568626,0.000505,60]
[404209506,1769966495787,-500.0,0.000505,120]
[404209507,1769966495857,-150.0,0.00050512,30]
[404209508,1769966495932,-150.0,0.00050552,30]
[404209509,1769966496001,-150.0,0.00050552,30]
[404209510,1769966496068,-250.0,0.00050579,80]
[404209511,1769966496137,-250.0,0.00050579,90]
[404209512,1769966496204,-151.0,0.00050579,80]
[404209513,1769966496269,-151.0,0.00050579,90]
[404209514,1769966496334,-684.78873825,0.000506,120]
[404209515,1769966496398,-177.25,0.000506,120]